bitfinex/quotes_SOLUSD_20241208
["timestamp","ask_amount","ask_price","bid_price","bid_amount"]
[1733651696615,20.0,233.96,233.87,21.0604749]
[1733651696789,21.0604749,233.93,233.87,1.4]
[1733651696995,21.0604749,233.93,233.87,22.4604749]
[1733651697174,21.0604749,233.93,233.86,22.4604749]
[1733651697374,21.0604749,233.93,233.86,21.0604749]
[1733651697592,21.0604749,233.94,233.87,21.0604749]
[1733651697778,21.0604749,233.97,233.9,21.0604749]
[1733651698802,21.0604749,233.99,233.92,21.0604749]
[1733651699391,21.0604749,233.98,233.91,21.0604749]
[1733651699581,10.6818,234.05,233.89,21.0604749]
[1733651699582,21.0604749,233.96,233.89,21.0604749]
[1733651699780,21.0604749,233.97,233.91,21.0604749]
[1733651700596,10.6831,234.02,233.93,21.0604749]
[1733651700597,21.0604749,234.0,233.93,21.0604749]
[1733651701316,10.6831,234.02,233.92,6.6094]
[1733651701317,21.0604749,233.97,233.92,6.6094]
[1733651701487,21.0604749,233.94,233.89,1.4]
[1733651701696,21.0604749,233.97,233.9,21.0604749]
[1733651701919,21.0604749,233.99,233.92,21.0604749]
[1733651702095,32.043,234.06,233.93,21.0604749]
[1733651702096,21.0604749,234.0,233.93,21.0604749]
[1733651702316,21.0604749,234.0,233.87,1.4]
[1733651702317,20.0,234.02,233.91,21.0604749]
[1733651702524,21.0604749,233.97,233.9,21.0604749]
[1733651702704,21.0604749,233.98,233.91,22.4604749]
[1733651702906,21.0604749,233.99,233.92,21.0604749]
[1733651703225,21.0604749,233.98,233.92,1.4]
[1733651703518,21.0604749,233.97,233.92,1.4]
[1733651704092,20.0,234.02,233.92,1.4]
[1733651704093,21.0604749,233.96,233.92,1.4]
[1733651704301,21.0604749,233.94,233.9,1.4]
[1733651704497,21.0604749,233.94,233.89,1.4]
[1733651704696,21.0604749,233.94,233.87,21.0604749]
[1733651705228,21.0604749,233.97,233.91,21.0604749]
[1733651705529,21.0604749,233.98,233.92,22.4604749]
[1733651706113,20.0,234.02,233.92,22.4604749]
[1733651706114,21.0604749,233.97,233.92,1.4]
[1733651706298,21.0604749,233.95,233.92,1.4]
[1733651706499,21.0604749,233.95,233.89,1.4]
[1733651706727,21.0604749,233.92,233.89,1.4]
[1733651706933,21.0604749,233.9,233.87,1.4]
[1733651707221,21.0604749,233.88,233.86,6.6094]
[1733651708824,21.0604749,233.87,233.86,6.6094]
[1733651709118,21.0604749,233.88,233.82,5.4839]
[1733651709540,21.0604749,233.87,233.82,5.4839]
[1733651709731,21.0604749,233.85,233.82,4.0839]
[1733651710353,21.0604749,233.84,233.81,7.6424]
[1733651710654,21.0604749,233.85,233.81,6.2424]
[1733651711236,21.0604749,233.83,233.81,6.2424]
[1733651711554,21.0604749,233.82,233.77,4.1361]
[1733651711765,21.0604749,233.78,233.72,4.1361]
[1733651712049,23.776884,233.87,233.7,6.2424]
[1733651712050,21.0604749,233.73,233.7,6.2424]
[1733651712259,4.26931178,233.83,233.7,6.2424]
[1733651712260,21.0604749,233.74,233.7,6.2424]
[1733651713125,21.0604749,233.72,233.68,1.4]
[1733651713325,21.0604749,233.71,233.67,4.1361]
[1733651713630,21.0604749,233.7,233.67,4.1361]
[1733651713958,21.0604749,233.69,233.67,4.1361]
[1733651714522,21.0604749,233.71,233.67,4.1361]
[1733651715221,10.6956,233.74,233.67,4.1361]
[1733651715464,21.0604749,233.69,233.67,4.1361]
[1733651715639,21.0604749,233.72,233.67,4.1361]
[1733651715844,21.0604749,233.71,233.67,4.1361]
[1733651716528,21.0604749,233.7,233.67,4.1361]
[1733651716735,21.0604749,233.76,233.67,4.1361]
[1733651716736,21.0604749,233.69,233.67,4.1361]
[1733651717262,21.0604749,233.73,233.67,26.5965749]
[1733651717472,10.6927,233.81,233.67,26.5965749]
[1733651717473,21.0604749,233.76,233.7,21.0604749]
[1733651717836,21.0604749,233.78,233.71,21.0604749]
[1733651718174,21.0604749,233.79,233.73,21.0604749]
[1733651718339,21.0604749,233.79,233.73,22.4604749]
[1733651718539,21.0604749,233.82,233.73,1.4]
[1733651718760,21.0604749,233.74,233.67,5.5361]
[1733651718973,21.0604749,233.74,233.67,26.5965749]
[1733651719274,10.6932,233.8,233.67,5.5361]
[1733651719468,20.0,233.77,233.67,5.5361]
[1733651719642,21.0604749,233.68,233.67,5.5361]
[1733651720677,21.0604749,233.68,233.67,4.1361]
[1733651720877,21.0604749,233.68,233.64,6.2424]
[1733651721046,21.0604749,233.66,233.64,6.2424]
[1733651721371,21.0604749,233.67,233.64,6.2424]
[1733651721731,10.6952,233.75,233.64,6.2424]
[1733651721732,21.0604749,233.65,233.64,6.2424]
[1733651721936,21.0604749,233.66,233.59,21.0604749]
[1733651722170,21.0604749,233.65,233.57,25.9]
[1733651722343,21.0604749,233.62,233.57,25.9]
[1733651722939,21.0604749,233.63,233.57,25.9]
[1733651723173,21.0604749,233.62,233.57,25.9]
[1733651723686,21.0604749,233.64,233.57,46.9604749]
[1733651723888,5.29448231,233.72,233.59,21.0604749]
[1733651723889,21.0604749,233.66,233.59,21.0604749]
[1733651724049,10.6967,233.72,233.57,25.9]
[1733651724050,21.0604749,233.67,233.61,21.0604749]
[1733651724255,21.0604749,233.66,233.61,1.4]
[1733651724456,21.0604749,233.67,233.6,21.0604749]
[1733651724685,21.0604749,233.66,233.59,21.0604749]
[1733651724890,21.0604749,233.65,233.59,22.4604749]
[1733651725070,21.0604749,233.65,233.59,21.0604749]
[1733651725274,20.0,233.69,233.57,25.9]
[1733651725275,21.0604749,233.64,233.58,21.0604749]
[1733651725787,21.0604749,233.64,233.57,25.9]
[1733651725980,21.0604749,233.64,233.57,46.9604749]
[1733651726374,21.0604749,233.64,233.58,21.0604749]
[1733651726582,21.0604749,233.64,233.57,25.9]
[1733651726583,21.0604749,233.59,233.57,24.5]
[1733651726801,21.0604749,233.64,233.57,24.5]
[1733651726802,21.0604749,233.6,233.57,24.5]
[1733651727089,20.0,233.64,233.57,24.5]
[1733651727265,21.0604749,233.58,233.57,24.5]
[1733651730801,13.20719841,233.58,233.57,24.5]
[1733651732799,21.13924656,233.58,233.57,24.5]
[1733651735098,21.13924656,233.59,233.57,24.5]
[1733651735406,21.13924656,233.58,233.57,24.5]
[1733651735785,21.13924656,233.59,233.57,24.5]
[1733651735992,21.13924656,233.58,233.57,24.5]
[1733651736200,21.13924656,233.59,233.57,24.5]
[1733651736374,10.6991,233.67,233.57,24.5]
[1733651736375,21.13924656,233.58,233.57,24.5]
[1733651752522,13.20846754,233.58,233.57,24.5]
[1733651754532,10.7034,233.57,233.52,15.0]
[1733651754694,13.20846754,233.58,233.52,15.0]
[1733651754900,13.20846754,233.53,233.52,15.0]
[1733651756212,20.0,233.55,233.52,15.0]
[1733651756396,13.20846754,233.53,233.52,15.0]
[1733651756594,13.20846754,233.53,233.52,14.5]
[1733651757016,4.03235067,233.64,233.53,4.1963]
[1733651757205,13.20846754,233.57,233.53,5.5963]
[1733651757417,13.20846754,233.64,233.52,14.5]
[1733651757418,13.20846754,233.54,233.52,14.5]
[1733651757606,13.20846754,233.53,233.52,14.5]
[1733651758248,13.20846754,233.55,233.52,14.5]
[1733651758946,13.20846754,233.54,233.52,14.5]
[1733651759137,13.20846754,233.56,233.52,14.5]
[1733651759443,13.20846754,233.56,233.52,15.9]
[1733651760246,5.29448231,233.66,233.53,34.649784]
[1733651760446,13.20846754,233.59,233.53,36.049784]
[1733651760743,13.20846754,233.59,233.53,34.649784]
[1733651760920,13.20846754,233.59,233.53,49.25825154]
[1733651761132,13.20846754,233.61,233.55,36.98535154]
[1733651761323,5.29448231,233.71,233.57,36.98535154]
[1733651761324,15.99178231,233.71,233.57,36.98535154]
[1733651761520,13.20846754,233.64,233.57,14.60846754]
[1733651761863,13.20846754,233.63,233.58,23.776884]
[1733651762052,13.20846754,233.63,233.58,1.4]
[1733651762250,13.20846754,233.64,233.57,38.38535154]
[1733651762409,13.20846754,233.63,233.57,38.38535154]
[1733651762611,13.20846754,233.67,233.61,23.776884]
[1733651762940,13.20846754,233.69,233.63,10.8729]
[1733651763109,10.0,233.79,233.63,10.8729]
[1733651763306,4.22870602,233.77,233.63,10.8729]
[1733651763542,13.20846754,233.66,233.63,10.8729]
[1733651763923,13.20846754,233.67,233.63,10.8729]
[1733651764255,13.20846754,233.72,233.66,13.20846754]
[1733651764407,13.20846754,233.73,233.66,13.20846754]
[1733651764612,13.20846754,233.73,233.67,36.98535154]
[1733651765035,13.20846754,233.73,233.67,23.776884]
[1733651765341,13.20846754,233.72,233.67,23.776884]
[1733651765558,13.20846754,233.73,233.67,23.776884]
[1733651765794,13.20846754,233.72,233.67,25.176884]
[1733651765961,13.20846754,233.72,233.67,23.776884]
[1733651766387,13.20846754,233.72,233.67,25.176884]
[1733651766895,20.0,233.76,233.67,25.176884]
[1733651766896,13.20846754,233.69,233.67,1.4]
[1733651767063,13.20846754,233.68,233.63,10.8729]
[1733651767258,13.20846754,233.64,233.63,10.8729]
[1733651767477,13.20846754,233.64,233.58,12.2729]
[1733651767673,5.4797521,233.75,233.58,12.2729]
[1733651767878,13.20846754,233.66,233.6,13.20846754]
[1733651768078,13.20846754,233.68,233.61,13.20846754]
[1733651768268,13.20846754,233.68,233.62,13.20846754]
[1733651768684,10.6928,233.81,233.68,23.776884]
[1733651768863,13.20846754,233.76,233.7,13.20846754]
[1733651769191,13.20846754,233.76,233.62,5.0]
[1733651769192,13.20846754,233.71,233.61,1.4]
[1733651769428,13.20846754,233.66,233.61,1.4]
[1733651769777,13.20846754,233.66,233.62,1.4]
[1733651770111,13.20846754,233.64,233.61,1.4]
[1733651770281,13.20846754,233.62,233.61,1.4]
[1733651770608,13.20846754,233.63,233.61,1.4]
[1733651770916,4.35220602,233.74,233.58,13.20846754]
[1733651770917,13.20846754,233.64,233.58,13.20846754]
[1733651771094,13.20846754,233.65,233.58,13.20846754]
[1733651771291,13.20846754,233.65,233.58,14.60846754]
[1733651771494,13.20846754,233.66,233.59,13.20846754]
[1733651771814,13.20846754,233.68,233.61,14.60846754]
[1733651772508,13.20846754,233.69,233.62,36.98535154]
[1733651773419,13.20846754,233.67,233.62,25.176884]
[1733651773921,13.20846754,233.68,233.62,38.38535154]
[1733651774783,13.20846754,233.67,233.62,25.176884]
[1733651775304,13.20846754,233.66,233.62,25.176884]
[1733651775511,13.20846754,233.68,233.62,38.38535154]
[1733651775806,13.20846754,233.68,233.62,1.4]
[1733651775978,13.20846754,233.67,233.62,1.4]
[1733651776177,10.6969,233.72,233.62,1.4]
[1733651776178,13.20846754,233.68,233.62,1.4]
[1733651776613,13.20846754,233.65,233.62,1.4]
[1733651776819,13.20846754,233.65,233.56,10.8729]
[1733651776820,13.20846754,233.63,233.56,25.48136754]
[1733651777020,13.20846754,233.63,233.57,23.902374]
[1733651777187,13.20846754,233.63,233.57,37.11084154]
[1733651777393,13.20846754,233.65,233.59,38.38535154]
[1733651777905,13.20846754,233.65,233.59,14.60846754]
[1733651778104,10.6969,233.72,233.6,38.38535154]
[1733651778105,13.20846754,233.67,233.6,38.38535154]
[1733651778303,13.20846754,233.67,233.61,13.20846754]
[1733651778624,13.20846754,233.68,233.62,14.60846754]
[1733651778931,23.90336754,233.76,233.63,25.176884]
[1733651778932,13.20846754,233.66,233.63,25.176884]
[1733651779807,20.0,233.73,233.63,25.176884]
[1733651780123,13.20846754,233.69,233.63,25.176884]
[1733651780323,13.20846754,233.68,233.63,25.176884]
[1733651780486,13.20846754,233.67,233.63,25.176884]
[1733651780986,13.20846754,233.64,233.63,1.4]
[1733651781488,13.20846754,233.64,233.58,1.4]
[1733651781709,13.20846754,233.61,233.58,1.4]
[1733651782090,13.20846754,233.59,233.58,1.4]
[1733651783492,13.20846754,233.6,233.58,1.4]
[1733651784213,13.20846754,233.59,233.53,12.5944]
[1733651784427,13.20846754,233.64,233.53,12.5944]
[1733651784428,13.20846754,233.56,233.53,12.5944]
[1733651784609,13.20846754,233.58,233.53,12.5944]
[1733651784802,13.20846754,233.59,233.53,12.5944]
[1733651785538,13.20846754,233.61,233.55,13.20846754]
[1733651785719,13.20846754,233.61,233.54,13.20846754]
[1733651785920,13.20846754,233.62,233.55,13.20846754]
[1733651786228,13.20846754,233.62,233.56,23.776884]
[1733651787209,13.20846754,233.62,233.56,25.176884]
[1733651787731,4.35220602,233.66,233.56,38.38535154]
[1733651787932,20.0,233.67,233.62,23.776884]
[1733651788176,13.20846754,233.65,233.62,23.776884]
[1733651788327,13.20846754,233.66,233.62,25.176884]
[1733651788631,4.35220602,233.71,233.62,23.776884]
[1733651788841,10.6959,233.74,233.65,23.776884]
[1733651789003,13.20846754,233.71,233.65,23.776884]
[1733651789197,13.20846754,233.69,233.65,23.776884]
[1733651789612,13.20846754,233.7,233.65,23.776884]
[1733651790019,13.20846754,233.69,233.65,23.776884]
[1733651790209,13.20846754,233.68,233.65,23.776884]
[1733651790405,13.20846754,233.66,233.64,11.1944]
[1733651790609,13.20846754,233.67,233.64,11.1944]
[1733651790830,13.20846754,233.71,233.65,36.98535154]
[1733651791110,13.20846754,233.71,233.65,23.776884]
[1733651791314,13.20846754,233.7,233.65,23.776884]
[1733651791508,13.20846754,233.7,233.65,25.176884]
[1733651791951,13.20846754,233.69,233.65,25.176884]
[1733651792131,13.20846754,233.69,233.63,13.20846754]
[1733651792132,13.20846754,233.66,233.58,11.1944]
[1733651792342,13.20846754,233.6,233.58,12.5944]
[1733651792669,13.20846754,233.61,233.58,11.1944]
[1733651793033,13.20846754,233.61,233.58,12.5944]
[1733651793261,13.20846754,233.59,233.53,1.4]
[1733651793555,13.20846754,233.61,233.57,1.4]
[1733651793852,13.20846754,233.62,233.57,1.4]
[1733651794052,13.20846754,233.62,233.58,1.4]
[1733651794261,13.20846754,233.62,233.55,13.20846754]
[1733651794932,13.20846754,233.59,233.58,1.4]
[1733651795461,13.20846754,233.61,233.58,1.4]
[1733651795627,13.20846754,233.62,233.58,1.4]
[1733651795828,13.20846754,233.62,233.55,14.60846754]
[1733651796053,13.20846754,233.62,233.58,1.4]
[1733651796444,13.20846754,233.63,233.59,23.776884]
[1733651797449,13.20846754,233.65,233.59,38.38535154]
[1733651797761,13.20846754,233.67,233.63,23.776884]
[1733651797932,13.20846754,233.67,233.63,25.176884]
[1733651798458,13.20846754,233.66,233.63,25.176884]
[1733651799349,13.20846754,233.69,233.63,25.176884]
[1733651799531,13.20846754,233.68,233.63,25.176884]
[1733651800163,13.20846754,233.69,233.63,25.176884]
[1733651800351,13.20846754,233.69,233.63,38.38535154]
[1733651801134,13.20846754,233.68,233.63,25.176884]
[1733651801435,13.20846754,233.67,233.63,25.176884]
[1733651802365,4.11062269,233.79,233.62,11.1183]
[1733651802366,13.20846754,233.72,233.67,23.776884]
[1733651802532,13.20846754,233.73,233.67,23.776884]
[1733651802732,13.20846754,233.73,233.67,25.176884]
[1733651803270,13.20846754,233.74,233.69,23.776884]
[1733651803729,13.20846754,233.74,233.69,25.176884]
[1733651803932,13.20846754,233.75,233.69,38.38535154]
[1733651804445,13.20846754,233.76,233.69,38.38535154]
[1733651804752,13.20846754,233.79,233.73,24.32676754]
[1733651805063,13.20846754,233.81,233.76,23.776884]
[1733651805362,13.20846754,233.8,233.75,25.176884]
[1733651805570,13.20846754,233.81,233.77,23.776884]
[1733651805734,13.20846754,233.8,233.77,23.776884]
[1733651806060,13.20846754,233.8,233.77,25.176884]
[1733651806232,13.20846754,233.81,233.77,25.176884]
[1733651806439,13.20846754,233.82,233.77,25.176884]
[1733651807744,13.20846754,233.83,233.77,38.38535154]
[1733651807942,13.20846754,233.84,233.79,23.776884]
[1733651808264,13.20846754,233.83,233.79,25.176884]
[1733651809661,13.20846754,233.8,233.79,25.176884]
[1733651810066,13.20846754,233.81,233.79,25.176884]
[1733651811140,13.20846754,233.82,233.79,25.176884]
[1733651811342,13.20846754,233.81,233.79,25.176884]
[1733651812034,13.20846754,233.81,233.74,13.20846754]
[1733651812035,13.20846754,233.8,233.73,11.1183]
[1733651812235,13.20846754,233.74,233.73,11.1183]
[1733651812665,13.20846754,233.75,233.73,11.1183]
[1733651813167,13.20846754,233.74,233.73,11.1183]
[1733651815761,13.20846754,233.75,233.73,11.1183]
[1733651816263,13.20846754,233.76,233.73,11.1183]
[1733651816438,13.20846754,233.79,233.74,23.776884]
[1733651816639,13.20846754,233.8,233.74,25.176884]
[1733651816869,13.20846754,233.79,233.74,25.176884]
[1733651817048,13.20846754,233.78,233.74,1.4]
[1733651817253,13.20846754,233.78,233.75,23.776884]
[1733651817472,13.20846754,233.79,233.75,23.776884]
[1733651818347,13.20846754,233.77,233.73,12.5183]
[1733651818550,13.20846754,233.77,233.74,23.776884]
[1733651818854,13.20846754,233.79,233.74,25.176884]
[1733651819844,13.20846754,233.77,233.74,1.4]
[1733651820043,10.6896,233.87,233.74,1.4]
[1733651820044,13.20846754,233.76,233.74,1.4]
[1733651821155,13.20846754,233.77,233.74,1.4]
[1733651821366,13.20846754,233.78,233.74,1.4]
[1733651821777,13.20846754,233.79,233.74,1.4]
[1733651821952,13.20846754,233.8,233.74,14.60846754]
[1733651823148,13.20846754,233.82,233.75,36.98535154]
[1733651823372,3.5545,233.94,233.8,13.20846754]
[1733651823541,13.20846754,233.9,233.84,1.4]
[1733651824249,10.6846,233.98,233.87,13.20846754]
[1733651824461,13.20846754,233.94,233.87,13.20846754]
[1733651824946,13.20846754,233.94,233.87,14.60846754]
[1733651825259,10.6831,234.02,233.87,14.60846754]
[1733651825260,13.20846754,233.96,233.9,13.20846754]
[1733651825459,13.20846754,233.98,233.91,13.20846754]
[1733651825981,4.7049,234.06,233.91,13.20846754]
[1733651825982,13.20846754,233.99,233.93,13.20846754]
[1733651826272,13.20846754,234.0,233.93,13.20846754]
[1733651826462,13.20846754,234.0,233.92,23.776884]
[1733651826463,13.20846754,234.01,233.94,13.20846754]
[1733651826642,13.20846754,234.02,233.96,13.20846754]
[1733651826843,10.6811,234.06,233.92,23.776884]
[1733651827045,10.06440398,234.05,233.91,1.4]
[1733651827348,10.6819,234.04,233.91,1.4]
[1733651827769,13.20846754,233.95,233.91,1.4]
[1733651828080,13.20846754,233.93,233.86,13.20846754]
[1733651828264,13.20846754,233.92,233.87,23.776884]
[1733651828444,13.20846754,233.92,233.91,1.4]
[1733651828869,13.20846754,233.93,233.91,1.4]
[1733651829076,13.20846754,233.94,233.88,13.20846754]
[1733651829242,13.20846754,233.95,233.91,1.4]
[1733651829457,13.20846754,233.95,233.89,13.20846754]
[1733651829659,13.20846754,233.96,233.9,13.20846754]
[1733651829856,13.20846754,233.97,233.91,13.20846754]
[1733651830268,13.20846754,233.98,233.91,13.20846754]
[1733651830581,13.20846754,233.99,233.92,13.20846754]
[1733651830766,13.20846754,234.0,233.94,13.20846754]
[1733651831665,10.6815,234.05,233.93,23.776884]
[1733651831666,13.20846754,233.98,233.93,23.776884]
[1733651831858,13.20846754,233.99,233.93,36.98535154]
[1733651832079,13.20846754,234.0,233.94,13.20846754]
[1733651833068,13.20846754,234.0,233.94,14.60846754]
[1733651833588,13.20846754,234.01,233.95,24.51936754]
[1733651833790,13.20846754,234.02,233.96,13.20846754]
[1733651834089,13.20846754,234.02,233.95,12.7109]
[1733651834090,13.20846754,234.04,233.98,13.20846754]
[1733651834579,13.20846754,234.04,233.97,36.98535154]
[1733651834789,13.20846754,234.03,233.97,36.98535154]
[1733651834977,13.20846754,234.04,233.98,13.20846754]
[1733651835662,13.20846754,234.05,233.99,13.20846754]
[1733651836287,13.20846754,234.07,234.01,13.20846754]
[1733651836477,13.20846754,234.07,234.02,1.4]
[1733651836787,13.20846754,234.03,234.01,1.4]
[1733651836955,13.20846754,234.02,234.01,1.4]
[1733651837473,13.20846754,234.03,233.97,23.776884]
[1733651837668,13.20846754,234.03,233.97,25.176884]
[1733651838078,13.20846754,233.99,233.97,1.4]
[1733651838380,13.20846754,233.98,233.95,12.7109]
[1733651838586,13.20846754,234.01,233.95,12.7109]
[1733651838760,13.20846754,234.03,233.96,13.20846754]
[1733651839081,20.0,234.06,233.97,1.4]
[1733651839258,4.06049197,234.08,233.97,1.4]
[1733651839463,4.06049197,234.08,233.98,23.776884]
[1733651840079,13.20846754,234.04,233.98,36.98535154]
[1733651840268,13.20846754,234.05,233.98,36.98535154]
[1733651840585,21.04191014,234.05,233.99,21.04191014]
[1733651840786,21.04191014,234.05,234.0,23.776884]
[1733651840995,21.04191014,234.08,234.03,23.776884]
[1733651841280,21.04191014,234.07,234.03,23.776884]
[1733651842194,21.04191014,234.07,234.03,25.176884]
[1733651842358,21.04191014,234.08,234.03,25.176884]
[1733651842689,21.04191014,234.09,234.03,46.21879414]
[1733651843474,21.04191014,234.1,234.04,21.04191014]
[1733651843673,21.04191014,234.1,234.05,23.776884]
[1733651844071,21.04191014,234.1,234.07,23.776884]
[1733651845289,21.04191014,234.12,234.07,25.176884]
[1733651846193,21.04191014,234.11,234.07,25.176884]
[1733651846867,21.04191014,234.12,234.07,25.176884]
[1733651847070,21.04191014,234.11,234.07,25.176884]
[1733651847394,21.04191014,234.12,234.07,25.176884]
[1733651847576,21.04191014,234.13,234.09,23.776884]
[1733651847892,10.6749,234.2,234.07,46.21879414]
[1733651848057,21.04191014,234.14,234.07,46.21879414]
[1733651848263,10.6749,234.2,234.07,46.21879414]
[1733651848264,21.04191014,234.13,234.07,46.21879414]
[1733651848594,21.04191014,234.14,234.09,23.776884]
[1733651848961,21.04191014,234.15,234.09,23.776884]
[1733651849165,21.04191014,234.15,234.09,25.176884]
[1733651849557,21.04191014,234.14,234.09,25.176884]
[1733651850203,21.04191014,234.17,234.11,21.04191014]
[1733651850497,21.04191014,234.17,234.12,25.176884]
[1733651851480,21.04191014,234.19,234.12,46.21879414]
[1733651851787,21.04191014,234.16,234.12,25.176884]
[1733651852001,21.04191014,234.15,234.12,25.176884]
[1733651852375,21.04191014,234.16,234.12,25.176884]
[1733651852579,21.04191014,234.17,234.12,25.176884]
[1733651853003,21.04191014,234.16,234.12,25.176884]
[1733651853306,21.04191014,234.13,234.12,1.4]
[1733651853468,21.04191014,234.13,234.06,13.2068]
[1733651853672,20.0,234.12,234.06,13.2068]
[1733651853873,10.677,234.15,234.06,13.2068]
[1733651854180,21.04191014,234.1,234.06,13.2068]
[1733651854381,21.04191014,234.11,234.06,13.2068]
[1733651854596,21.04191014,234.09,234.06,13.2068]
[1733651855100,21.04191014,234.07,234.06,13.2068]
[1733651855474,21.04191014,234.07,234.06,11.8068]
[1733651856385,21.04191014,234.09,234.06,11.8068]
[1733651856580,21.04191014,234.09,234.07,23.776884]
[1733651856995,21.04191014,234.08,234.07,23.776884]
[1733651858285,21.04191014,234.08,234.06,11.8068]
[1733651858595,21.04191014,234.07,234.06,11.8068]
[1733651858904,10.6778,234.14,234.06,11.8068]
[1733651859108,21.04191014,234.07,234.06,11.8068]
[1733651859399,21.04191014,234.07,233.95,11.1524]
[1733651859625,21.04191014,234.12,233.95,11.1524]
[1733651859626,21.04191014,234.02,233.96,5.0]
[1733651859804,20.0,234.09,233.96,5.0]
[1733651860119,20.0,234.11,233.98,5.0]
[1733651860331,3.81262136,234.16,233.98,5.0]
[1733651860500,3.81262136,234.16,233.98,6.4]
[1733651860691,3.81262136,234.16,234.0,5.0]
[1733651860904,13.14518303,234.1,234.03,13.14518303]
[1733651861190,13.14518303,234.08,234.06,1.4]
[1733651861406,13.14518303,234.07,234.06,25.176884]
[1733651861626,13.14518303,234.09,234.07,23.776884]
[1733651861925,10.6769,234.15,234.07,23.776884]
[1733651861926,13.14518303,234.1,234.07,23.776884]
[1733651862311,13.14518303,234.11,234.07,23.776884]
[1733651863249,13.14518303,234.11,234.07,25.176884]
[1733651863413,13.14518303,234.14,234.09,25.176884]
[1733651863592,13.14518303,234.13,234.09,25.176884]
[1733651863930,13.14518303,234.16,234.09,38.32206703]
[1733651864225,13.14518303,234.19,234.13,36.92206703]
[1733651864417,10.6717,234.27,234.13,36.92206703]
[1733651864418,13.14518303,234.2,234.15,23.776884]
[1733651864803,13.14518303,234.18,234.14,23.776884]
[1733651865005,13.14518303,234.15,234.14,25.176884]
[1733651865209,13.14518303,234.15,234.08,12.5524]
[1733651865415,13.14518303,234.09,234.08,12.5524]
[1733651865632,13.14518303,234.09,234.08,11.1524]
[1733651866322,13.14518303,234.09,234.01,24.29758303]
[1733651866624,13.14518303,234.08,234.01,24.29758303]
[1733651867102,13.14518303,234.09,234.02,36.92206703]
[1733651867300,32.0251,234.19,234.05,23.776884]
[1733651867301,13.14518303,234.11,234.05,23.776884]
[1733651867503,13.14518303,234.1,234.05,23.776884]
[1733651867718,13.14518303,234.09,234.04,23.776884]
[1733651867907,13.14518303,234.1,234.04,23.776884]
[1733651868824,13.14518303,234.1,234.04,22.361584]
[1733651869201,13.14518303,234.09,234.02,13.14518303]
[1733651869402,13.14518303,234.08,234.01,24.29758303]
[1733651869632,13.14518303,234.08,234.04,0.2]
[1733651870903,13.14518303,234.07,234.04,0.2]
[1733651871119,13.14518303,234.08,234.04,0.2]
[1733651872024,13.14518303,234.06,234.04,0.2]
[1733651872222,13.14518303,234.05,234.04,0.2]
[1733651872727,13.14518303,234.06,234.04,0.2]
[1733651873403,13.14518303,234.07,234.04,0.2]
[1733651873603,13.14518303,234.12,234.02,23.776884]
[1733651873927,13.14518303,234.05,234.02,23.776884]
[1733651874827,13.14518303,234.07,234.02,23.776884]
[1733651876738,13.14518303,234.06,234.02,23.776884]
[1733651877038,13.14518303,234.05,234.02,23.776884]
[1733651877213,13.14518303,234.04,234.02,23.776884]
[1733651877539,13.14518303,234.05,234.02,23.776884]
[1733651878033,13.14518303,234.06,234.02,23.776884]
[1733651879525,13.14518303,234.05,234.02,23.776884]
[1733651879735,13.14518303,234.04,234.02,23.776884]
[1733651879930,13.14518303,234.03,234.02,23.776884]
[1733651880109,13.14518303,234.03,234.01,11.1524]
[1733651880436,13.14518303,234.02,234.01,11.1524]
[1733651882014,13.14518303,234.02,234.01,34.929284]
[1733651882528,13.14518303,234.03,234.01,34.929284]
[1733651882727,13.14518303,234.03,234.02,23.776884]
[1733651883008,13.14518303,234.03,234.02,24.57660262]
[1733651885531,13.14518303,234.03,234.02,0.79971862]
[1733651886638,23.82758303,234.03,233.95,11.7305]
[1733651886943,13.14518303,233.96,233.95,11.7305]
[1733651887313,13.14518303,233.97,233.96,23.776884]
[1733651887814,13.14518303,234.0,233.96,23.776884]
[1733651888030,13.14518303,234.02,233.96,23.776884]
[1733651890049,13.14518303,234.02,233.96,24.16620949]
[1733651890944,13.14518303,234.03,233.96,37.31139252]
[1733651891151,13.14518303,234.03,233.97,13.14518303]
[1733651891353,13.14518303,234.03,233.96,37.31139252]
[1733651892256,13.14518303,234.02,233.96,24.16620949]
[1733651892631,13.14518303,234.0,233.96,24.16620949]